Workbook

Sheet Janvier
B2: Revenus mensuels | G2: Opérations | M2: Reste & loisirs | N2: =C46+D46 -> -450
B3: Nom | C3: Date | D3: Montant | E3: Reçu | G3: Date | H3: Objet | I3: Catégorie | J3: Montant | K3: Balance | M3: Date | N3: Objet | O3: Montant | P3: Balance
B4: Salaire Décembre | E4: =IF(ISTEXT(C4),TRUE,FALSE) -> FALSE | G4: Lundi 1 | H4: Salaire décembre | I4: Revenus mensuels | J4: =D4 -> 0 | K4: =J4 -> 0
E5: =IF(ISTEXT(C5),TRUE,FALSE) -> FALSE | G5: Lundi 1 | H5: Reste Décembre | I5: Revenus mensuels | J5: =D42 -> 0 | K5: =K4+J5 -> 0
B14: Total | C14: =SUM(D4:D13) -> 0
B16: Frais mensuels
B17: Nom | C17: Date | D17: Montant | E17: Reçu
E18: =IF(ISTEXT(C18),TRUE,FALSE) -> FALSE
E19: FALSE
E20: FALSE
E21: FALSE
E22: FALSE
E23: FALSE
E24: FALSE
E25: =IF(ISTEXT(C25),TRUE,FALSE) -> FALSE
B38: Total | C38: =SUM(D18:D37) -> 0
B40: Budget mensuel
B41: Nom | C41: Montant | D41: Reste mois précédent
B42: Total | C42: =C14-C38 -> 0
B43: Hygiène | C43: 50
B44: Vêtements | C44: 100
B45: Nourriture | C45: 300
B46: Reste/loisirs | C46: =SUM(C42-(C43+C44+C45)) -> -450
B48: Calendrier
B49: Début mois | C49: 2024-01-01
B50: Fin mois | C50: =EOMONTH(C49,0) -> 2024-01-31 | D50: Budget quot.
B51: Nmbr de jours | C51: =DAY(EOMONTH(C49,0)) -> 31 | D51: =C46/C51 -> -14.51612903
B53: Livret A | M53: Dépensé | N53: =SUM(O4:O52) -> 0 | O53: Restant | P53: =N2+N53 -> -450
B54: Date | C54: Objet | D54: Montant | E54: Balance
E55: =C53+D55 -> 0 | M55: Nourriture | N55: =C45+D45 -> 300
E56: =IF(D56="","",E55+D56) ->  | M56: Date | N56: Objet | O56: Montant | P56: Balance
E57: =IF(D57="","",E56+D57) -> 
B64: Dépensé | C64: =SUM(D55:D63) -> 0 | D64: Restant | E64: =C53+C64 -> 0
B66: Livret Jeune
B67: Date | C67: Objet | D67: Montant | E67: Balance
E68: =C66+D68 -> 0 | K68: =IF(J68="","",K67+J68) -> 
E69: =IF(D69="","",E68+D69) -> 
K71: =IF(J71="","",K70+J71) -> 
B77: Dépensé | C77: =SUM(D68:D76) -> 0 | D77: Restant | E77: =C66+C77 -> 0
B79: LDD Solidaire
B80: Date | C80: Objet | D80: Montant | E80: Balance
E81: =C79+D81 -> 0
E82: =IF(D82="","",E81+D82) -> 
B90: Dépensé | C90: =SUM(D81:D89) -> 0 | D90: Restant | E90: =C79+C90 -> 0
B92: Millevie essentiel
B93: Date | C93: Objet | D93: Montant | E93: Balance
E94: =C92+D94 -> 0
E95: =IF(D95="","",E94+D95) -> 
B103: Dépensé | C103: =SUM(D94:D102) -> 0 | D103: Restant | E103: =C92+C103 -> 0
M106: Dépensé | N106: =SUM(O57:O105) -> 0 | O106: Restant | P106: =N55+N106 -> 300
M108: Vêtements | N108: =C44+D44 -> 100
M109: Date | N109: Objet | O109: Montant | P109: Balance
M129: Dépensé | N129: =SUM(O110:O128) -> 0 | O129: Restant | P129: =N108+N129 -> 100
M131: Hygiène | N131: =C43+D43 -> 50
M132: Date | N132: Objet | O132: Montant | P132: Balance
K135: =IF(J135="","",K134+J135) -> 
H153: Gagné | I153: =SUMIF(J4:J152,">0") -> 0 | J153: Restant | K153: =I153+I154 -> 0 | M153: Dépensé | N153: =SUM(O133:O152) -> 0 | O153: Restant | P153: =N131+N153 -> 50
H154: Dépensé | I154: =SUMIF(J4:J152,"<0") -> 0

Sheet Février
B2: Revenus mensuels | G2: Opérations | M2: Reste & loisirs | N2: =C46+D46 -> -900
B3: Nom | C3: Date | D3: Montant | E3: Reçu | G3: Date | H3: Objet | I3: Catégorie | J3: Montant | K3: Balance | M3: Date | N3: Objet | O3: Montant | P3: Balance
B4: Salaire Février | C4: Jeudi 1 | E4: =IF(ISTEXT(C4),TRUE,FALSE) -> TRUE | G4: Jeudi 1 | H4: =B4 -> Salaire Février | J4: =D4 -> 0 | K4: =J4 -> 0
E5: =IF(ISTEXT(C5),TRUE,FALSE) -> FALSE | G5: Jeudi 1 | H5: Reste Décembre | J5: =D42 -> 0 | K5: =K4+J5 -> 0
K6: =IF(J6="","",K5+J6) -> 
K7: =IF(J7="","",K6+J7) -> 
B14: Total | C14: =SUM(D4:D13) -> 0
B16: Frais mensuels
B17: Nom | C17: Date | D17: Montant | E17: Reçu
E18: =IF(ISTEXT(C18),TRUE,FALSE) -> FALSE
E19: =IF(ISTEXT(C19),TRUE,FALSE) -> FALSE
E20: =IF(ISTEXT(C20),TRUE,FALSE) -> FALSE
E21: FALSE
E22: FALSE
E23: FALSE
E24: FALSE
E25: FALSE
B38: Total | C38: =SUM(D18:D37) -> 0
B40: Budget mensuel
B41: Nom | C41: Montant | D41: Reste mois précédent
B42: Total | C42: =C14-C38 -> 0 | D42: =Janvier!K153 -> 0
B43: Hygiène | C43: 50 | D43: =Janvier!P153 -> 50
B44: Vêtements | C44: 100 | D44: =Janvier!P129 -> 100
B45: Nourriture | C45: 300 | D45: =Janvier!P106 -> 300
B46: Reste/loisirs | C46: =SUM(C42-(C43+C44+C45)) -> -450 | D46: =Janvier!P53 -> -450
B48: Calendrier
B49: Début mois | C49: 2024-02-01
B50: Fin mois | C50: =EOMONTH(C49,0) -> 2024-02-29 | D50: Budget quot.
B51: Nmbr de jours | C51: =DAY(EOMONTH(C49,0)) -> 29 | D51: =C46/C51 -> -15.51724138
B53: Livret A | C53: =Janvier!E64 -> 0 | M53: Dépensé | N53: =SUM(O4:O52) -> 0 | O53: Restant | P53: =N2+N53 -> -900
B54: Date | C54: Objet | D54: Montant | E54: Balance
E55: =C53+D55 -> 0 | M55: Nourriture | N55: =C45+D45 -> 600
E56: =IF(D56="","",E55+D56) ->  | M56: Date | N56: Objet | O56: Montant | P56: Balance
E57: =IF(D57="","",E56+D57) -> 
B64: Dépensé | C64: =SUM(D55:D63) -> 0 | D64: Restant | E64: =C53+C64 -> 0
B66: Livret Jeune | C66: =Janvier!E77 -> 0
B67: Date | C67: Objet | D67: Montant | E67: Balance
E68: =C66+D68 -> 0
E69: =IF(D69="","",E68+D69) -> 
K71: =IF(J71="","",K70+J71) -> 
B77: Dépensé | C77: =SUM(D68:D76) -> 0 | D77: Restant | E77: =C66+C77 -> 0
B79: LDD Solidaire | C79: =Janvier!E90 -> 0
B80: Date | C80: Objet | D80: Montant | E80: Balance
E81: =C79+D81 -> 0
E82: =IF(D82="","",E81+D82) -> 
B90: Dépensé | C90: =SUM(D81:D89) -> 0 | D90: Restant | E90: =C79+C90 -> 0
B92: Millevie essentiel | C92: =Janvier!E103 -> 0
B93: Date | C93: Objet | D93: Montant | E93: Balance
B94: Vendredi 5 | C94: Assurance vie | D94: 53.06 | E94: =C92+D94 -> 53.06
E95: =IF(D95="","",E94+D95) -> 
B103: Dépensé | C103: =SUM(D94:D102) -> 53.06 | D103: Restant | E103: =C92+C103 -> 53.06
M106: Dépensé | N106: =SUM(O57:O105) -> 0 | O106: Restant | P106: =N55+N106 -> 600
M108: Vêtements | N108: =C44+D44 -> 200
M109: Date | N109: Objet | O109: Montant | P109: Balance
M129: Dépensé | N129: =SUM(O110:O128) -> 0 | O129: Restant | P129: =N108+N129 -> 200
M131: Hygiène | N131: =C43+D43 -> 100
M132: Date | N132: Objet | O132: Montant | P132: Balance
K135: =IF(J135="","",K134+J135) -> 
H153: Gagné | I153: =SUMIF(J4:J152,">0") -> 0 | J153: Restant | K153: =I153+I154 -> 0 | M153: Dépensé | N153: =SUM(O133:O152) -> 0 | O153: Restant | P153: =N131+N153 -> 100
H154: Dépensé | I154: =SUMIF(J4:J152,"<0") -> 0

Sheet Mars
B2: Revenus mensuels | G2: Opérations | M2: Reste & loisirs | N2: =C46+D46 -> -1348
B3: Nom | C3: Date | D3: Montant | E3: Reçu | G3: Date | H3: Objet | I3: Catégorie | J3: Montant | K3: Balance | M3: Date | N3: Objet | O3: Montant | P3: Balance
B4: Salaire Mars | D4: 2 | E4: =IF(ISTEXT(C4),TRUE,FALSE) -> FALSE | G4: =B4 -> Salaire Mars | J4: =D4 -> 2 | K4: =J4 -> 2
E5: =IF(ISTEXT(C5),TRUE,FALSE) -> FALSE | K5: =K4+J5 -> 2
E6: =IF(ISTEXT(C6),TRUE,FALSE) -> FALSE | K6: =IF(J6="","",K5+J6) -> 
K7: =IF(J7="","",K6+J7) -> 
B14: Total | C14: =SUM(D4:D13) -> 2
B16: Frais mensuels
B17: Nom | C17: Date | D17: Montant | E17: Reçu
E18: =IF(ISTEXT(C18),TRUE,FALSE) -> FALSE
E19: =IF(ISTEXT(C19),TRUE,FALSE) -> FALSE
E20: =IF(ISTEXT(C20),TRUE,FALSE) -> FALSE
E21: FALSE
E22: FALSE
E23: FALSE
E24: FALSE
E25: FALSE
E26: FALSE
B38: Total | C38: =SUM(D18:D37) -> 0
B40: Budget mensuel
B41: Nom | C41: Montant | D41: Reste mois précédent
B42: Total | C42: =C14-C38 -> 2 | D42: =D4 -> 2
B43: Hygiène | C43: 50 | D43: =Février!P153 -> 100
B44: Vêtements | C44: 100 | D44: =Février!P129 -> 200
B45: Nourriture | C45: 300 | D45: =Février!P106 -> 600
B46: Reste/loisirs | C46: =SUM(C42-(C43+C44+C45)) -> -448 | D46: =Février!P53 -> -900
B48: Calendrier
B49: Début mois | C49: 2024-03-01
B50: Fin mois | C50: =EOMONTH(C49,0) -> 2024-03-31 | D50: Budget quot.
B51: Nmbr de jours | C51: =DAY(EOMONTH(C49,0)) -> 31 | D51: =C46/C51 -> -14.4516129
B53: Livret A | C53: =Février!E64 -> 0 | M53: Dépensé | N53: =SUM(O4:O52) -> 0 | O53: Restant | P53: =N2+N53 -> -1348
B54: Date | C54: Objet | D54: Montant | E54: Balance
E55: =C53+D55 -> 0 | M55: Nourriture | N55: =C45+D45 -> 900
E56: =IF(D56="","",E55+D56) ->  | M56: Date | N56: Objet | O56: Montant | P56: Balance
E57: =IF(D57="","",E56+D57) -> 
B64: Dépensé | C64: =SUM(D55:D63) -> 0 | D64: Restant | E64: =C53+C64 -> 0
B66: Livret Jeune | C66: =Février!E77 -> 0
B67: Date | C67: Objet | D67: Montant | E67: Balance
E68: =C66+D68 -> 0
E69: =IF(D69="","",E68+D69) -> 
K71: =IF(J71="","",K70+J71) -> 
B77: Dépensé | C77: =SUM(D68:D76) -> 0 | D77: Restant | E77: =C66+C77 -> 0
B79: LDD Solidaire | C79: =Février!E90 -> 0
B80: Date | C80: Objet | D80: Montant | E80: Balance
E81: =C79+D81 -> 0
E82: =IF(D82="","",E81+D82) -> 
B90: Dépensé | C90: =SUM(D81:D89) -> 0 | D90: Restant | E90: =C79+C90 -> 0
B92: Millevie essentiel | C92: =Février!E103 -> 53.06
B93: Date | C93: Objet | D93: Montant | E93: Balance
E94: =C92+D94 -> 53.06
E95: =IF(D95="","",E94+D95) -> 
B103: Dépensé | C103: =SUM(D94:D102) -> 0 | D103: Restant | E103: =C92+C103 -> 53.06
M106: Dépensé | N106: =SUM(O57:O105) -> 0 | O106: Restant | P106: =N55+N106 -> 900
M108: Vêtements | N108: =C44+D44 -> 300
M109: Date | N109: Objet | O109: Montant | P109: Balance
M129: Dépensé | N129: =SUM(O110:O128) -> 0 | O129: Restant | P129: =N108+N129 -> 300
M131: Hygiène | N131: =C43+D43 -> 150
M132: Date | N132: Objet | O132: Montant | P132: Balance
K135: =IF(J135="","",K134+J135) -> 
H153: Gagné | I153: =SUMIF(J4:J152,">0") -> 2 | J153: Restant | K153: =I153+I154 -> 2 | M153: Dépensé | N153: =SUM(O133:O152) -> 0 | O153: Restant | P153: =N131+N153 -> 150
H154: Dépensé | I154: =SUMIF(J4:J152,"<0") -> 0

Sheet Avril
B2: Revenus mensuels | G2: Opérations | M2: Reste & loisirs | N2: =C46+D46 -> -1796
B3: Nom | C3: Date | D3: Montant | E3: Reçu | G3: Date | H3: Objet | I3: Catégorie | J3: Montant | K3: Balance | M3: Date | N3: Objet | O3: Montant | P3: Balance
B4: Salaire Avril | D4: 2 | E4: =IF(ISTEXT(C4),TRUE,FALSE) -> FALSE | G4: =B4 -> Salaire Avril | J4: =D4 -> 2 | K4: =J4 -> 2
E5: =IF(ISTEXT(C5),TRUE,FALSE) -> FALSE | G5: =B5 -> 0 | J5: =D5 -> 0 | K5: =K4+J5 -> 2
E6: =IF(ISTEXT(C6),TRUE,FALSE) -> FALSE | K6: =IF(J6="","",K5+J6) -> 
K7: =IF(J7="","",K6+J7) -> 
B14: Total | C14: =SUM(D4:D13) -> 2
B16: Frais mensuels
B17: Nom | C17: Date | D17: Montant | E17: Reçu
E18: =IF(ISTEXT(C18),TRUE,FALSE) -> FALSE
E19: =IF(ISTEXT(C19),TRUE,FALSE) -> FALSE
E20: =IF(ISTEXT(C20),TRUE,FALSE) -> FALSE
E21: FALSE
E22: FALSE
E23: FALSE
E24: FALSE
E25: FALSE
E26: FALSE
E27: FALSE
B38: Total | C38: =SUM(D18:D37) -> 0
B40: Budget mensuel
B41: Nom | C41: Montant | D41: Reste mois précédent
B42: Total | C42: =C14-C38 -> 2 | D42: =D4 -> 2
B43: Hygiène | C43: 50 | D43: =Mars!P153 -> 150
B44: Vêtements | C44: 100 | D44: =Mars!P129 -> 300
B45: Nourriture | C45: 300 | D45: =Mars!P106 -> 900
B46: Reste/loisirs | C46: =SUM(C42-(C43+C44+C45)) -> -448 | D46: =Mars!P53 -> -1348
B48: Calendrier
B49: Début mois | C49: 2024-04-01
B50: Fin mois | C50: =EOMONTH(C49,0) -> 2024-04-30 | D50: Budget quot.
B51: Nmbr de jours | C51: =DAY(EOMONTH(C49,0)) -> 30 | D51: =C46/C51 -> -14.93333333
B53: Livret A | C53: =Mars!E64 -> 0 | M53: Dépensé | N53: =SUM(O4:O52) -> 0 | O53: Restant | P53: =N2+N53 -> -1796
B54: Date | C54: Objet | D54: Montant | E54: Balance
E55: =C53+D55 -> 0 | M55: Nourriture | N55: =C45+D45 -> 1200
E56: =IF(D56="","",E55+D56) ->  | M56: Date | N56: Objet | O56: Montant | P56: Balance
E57: =IF(D57="","",E56+D57) -> 
B64: Dépensé | C64: =SUM(D55:D63) -> 0 | D64: Restant | E64: =C53+C64 -> 0
B66: Livret Jeune | C66: =Mars!E77 -> 0
B67: Date | C67: Objet | D67: Montant | E67: Balance
E68: =C66+D68 -> 0
E69: =IF(D69="","",E68+D69) -> 
K71: =IF(J71="","",K70+J71) -> 
B77: Dépensé | C77: =SUM(D68:D76) -> 0 | D77: Restant | E77: =C66+C77 -> 0
B79: LDD Solidaire | C79: =Mars!E90 -> 0
B80: Date | C80: Objet | D80: Montant | E80: Balance
E81: =C79+D81 -> 0
E82: =IF(D82="","",E81+D82) -> 
B90: Dépensé | C90: =SUM(D81:D89) -> 0 | D90: Restant | E90: =C79+C90 -> 0
B92: Millevie essentiel | C92: =Mars!E103 -> 53.06
B93: Date | C93: Objet | D93: Montant | E93: Balance
E94: =C92+D94 -> 53.06
E95: =IF(D95="","",E94+D95) -> 
B103: Dépensé | C103: =SUM(D94:D102) -> 0 | D103: Restant | E103: =C92+C103 -> 53.06
M106: Dépensé | N106: =SUM(O57:O105) -> 0 | O106: Restant | P106: =N55+N106 -> 1200
M108: Vêtements | N108: =C44+D44 -> 400
M109: Date | N109: Objet | O109: Montant | P109: Balance
M129: Dépensé | N129: =SUM(O110:O128) -> 0 | O129: Restant | P129: =N108+N129 -> 400
M131: Hygiène | N131: =C43+D43 -> 200
M132: Date | N132: Objet | O132: Montant | P132: Balance
K135: =IF(J135="","",K134+J135) -> 
H153: Gagné | I153: =SUMIF(J4:J152,">0") -> 2 | J153: Restant | K153: =I153+I154 -> 2 | M153: Dépensé | N153: =SUM(O133:O152) -> 0 | O153: Restant | P153: =N131+N153 -> 200
H154: Dépensé | I154: =SUMIF(J4:J152,"<0") -> 0

Sheet Mai
B2: Revenus mensuels | G2: Opérations | M2: Reste & loisirs | N2: =C46+D46 -> -2244
B3: Nom | C3: Date | D3: Montant | E3: Reçu | G3: Date | H3: Objet | I3: Catégorie | J3: Montant | K3: Balance | M3: Date | N3: Objet | O3: Montant | P3: Balance
B4: Salaire Mai | D4: 2 | E4: =IF(ISTEXT(C4),TRUE,FALSE) -> FALSE | G4: =B4 -> Salaire Mai | J4: =D4 -> 2 | K4: =J4 -> 2
E5: =IF(ISTEXT(C5),TRUE,FALSE) -> FALSE | G5: =B5 -> 0 | J5: =D5 -> 0 | K5: =K4+J5 -> 2
E6: =IF(ISTEXT(C6),TRUE,FALSE) -> FALSE | K6: =IF(J6="","",K5+J6) -> 
K7: =IF(J7="","",K6+J7) -> 
B14: Total | C14: =SUM(D4:D13) -> 2
B16: Frais mensuels
B17: Nom | C17: Date | D17: Montant | E17: Reçu
E18: =IF(ISTEXT(C18),TRUE,FALSE) -> FALSE
E19: FALSE
E20: FALSE
E21: FALSE
E22: FALSE
E23: FALSE
E24: FALSE
E25: FALSE
E26: FALSE
E27: FALSE
E28: FALSE
B38: Total | C38: =SUM(D18:D37) -> 0
B40: Budget mensuel
B41: Nom | C41: Montant | D41: Reste mois précédent
B42: Total | C42: =C14-C38 -> 2 | D42: =D4 -> 2
B43: Hygiène | C43: 50 | D43: =Avril!P153 -> 200
B44: Vêtements | C44: 100 | D44: =Avril!P129 -> 400
B45: Nourriture | C45: 300 | D45: =Avril!P106 -> 1200
B46: Reste/loisirs | C46: =SUM(C42-(C43+C44+C45)) -> -448 | D46: =Avril!P53 -> -1796
B48: Calendrier
B49: Début mois | C49: 2024-05-01
B50: Fin mois | C50: =EOMONTH(C49,0) -> 2024-05-31 | D50: Budget quot.
B51: Nmbr de jours | C51: =DAY(EOMONTH(C49,0)) -> 31 | D51: =C46/C51 -> -14.4516129
B53: Livret A | C53: =Avril!E64 -> 0 | M53: Dépensé | N53: =SUM(O4:O52) -> 0 | O53: Restant | P53: =N2+N53 -> -2244
B54: Date | C54: Objet | D54: Montant | E54: Balance
E55: =C53+D55 -> 0 | M55: Nourriture | N55: =C45+D45 -> 1500
E56: =IF(D56="","",E55+D56) ->  | M56: Date | N56: Objet | O56: Montant | P56: Balance
E57: =IF(D57="","",E56+D57) -> 
B64: Dépensé | C64: =SUM(D55:D63) -> 0 | D64: Restant | E64: =C53+C64 -> 0
B66: Livret Jeune | C66: =Avril!E77 -> 0
B67: Date | C67: Objet | D67: Montant | E67: Balance
E68: =C66+D68 -> 0
E69: =IF(D69="","",E68+D69) -> 
K71: =IF(J71="","",K70+J71) -> 
B77: Dépensé | C77: =SUM(D68:D76) -> 0 | D77: Restant | E77: =C66+C77 -> 0
B79: LDD Solidaire | C79: =Avril!E90 -> 0
B80: Date | C80: Objet | D80: Montant | E80: Balance
E81: =C79+D81 -> 0
E82: =IF(D82="","",E81+D82) -> 
B90: Dépensé | C90: =SUM(D81:D89) -> 0 | D90: Restant | E90: =C79+C90 -> 0
B92: Millevie essentiel | C92: =Avril!E103 -> 53.06
B93: Date | C93: Objet | D93: Montant | E93: Balance
E94: =C92+D94 -> 53.06
E95: =IF(D95="","",E94+D95) -> 
B103: Dépensé | C103: =SUM(D94:D102) -> 0 | D103: Restant | E103: =C92+C103 -> 53.06
M106: Dépensé | N106: =SUM(O57:O105) -> 0 | O106: Restant | P106: =N55+N106 -> 1500
M108: Vêtements | N108: =C44+D44 -> 500
M109: Date | N109: Objet | O109: Montant | P109: Balance
M129: Dépensé | N129: =SUM(O110:O128) -> 0 | O129: Restant | P129: =N108+N129 -> 500
M131: Hygiène | N131: =C43+D43 -> 250
M132: Date | N132: Objet | O132: Montant | P132: Balance
K135: =IF(J135="","",K134+J135) -> 
H153: Gagné | I153: =SUMIF(J4:J152,">0") -> 2 | J153: Restant | K153: =I153+I154 -> 2 | M153: Dépensé | N153: =SUM(O133:O152) -> 0 | O153: Restant | P153: =N131+N153 -> 250
H154: Dépensé | I154: =SUMIF(J4:J152,"<0") -> 0

Sheet Juin
B2: Revenus mensuels | G2: Opérations | M2: Reste & loisirs | N2: =C46+D46 -> -2692
B3: Nom | C3: Date | D3: Montant | E3: Reçu | G3: Date | H3: Objet | I3: Catégorie | J3: Montant | K3: Balance | M3: Date | N3: Objet | O3: Montant | P3: Balance
B4: Salaire Juin | D4: 2 | E4: =IF(ISTEXT(C4),TRUE,FALSE) -> FALSE | G4: =B4 -> Salaire Juin | J4: =D4 -> 2 | K4: =J4 -> 2
E5: =IF(ISTEXT(C5),TRUE,FALSE) -> FALSE | G5: =B5 -> 0 | J5: =D5 -> 0 | K5: =K4+J5 -> 2
E6: =IF(ISTEXT(C6),TRUE,FALSE) -> FALSE | K6: =IF(J6="","",K5+J6) -> 
K7: =IF(J7="","",K6+J7) -> 
B14: Total | C14: =SUM(D4:D13) -> 2
B16: Frais mensuels
B17: Nom | C17: Date | D17: Montant | E17: Reçu
E18: =IF(ISTEXT(C18),TRUE,FALSE) -> FALSE
E19: FALSE
E20: FALSE
E21: FALSE
E22: FALSE
E23: FALSE
E24: FALSE
E25: FALSE
E26: FALSE
B38: Total | C38: =SUM(D18:D37) -> 0
B40: Budget mensuel
B41: Nom | C41: Montant | D41: Reste mois précédent
B42: Total | C42: =C14-C38 -> 2 | D42: =D4 -> 2
B43: Hygiène | C43: 50 | D43: =Mai!P153 -> 250
B44: Vêtements | C44: 100 | D44: =Mai!P129 -> 500
B45: Nourriture | C45: 300 | D45: =Mai!P106 -> 1500
B46: Reste/loisirs | C46: =SUM(C42-(C43+C44+C45)) -> -448 | D46: =Mai!P53 -> -2244
B48: Calendrier
B49: Début mois | C49: 2024-06-01
B50: Fin mois | C50: =EOMONTH(C49,0) -> 2024-06-30 | D50: Budget quot.
B51: Nmbr de jours | C51: =DAY(EOMONTH(C49,0)) -> 30 | D51: =C46/C51 -> -14.93333333
B53: Livret A | C53: =Mai!E64 -> 0 | M53: Dépensé | N53: =SUM(O4:O52) -> 0 | O53: Restant | P53: =N2+N53 -> -2692
B54: Date | C54: Objet | D54: Montant | E54: Balance
E55: =C53+D55 -> 0 | M55: Nourriture | N55: =C45+D45 -> 1800
E56: =IF(D56="","",E55+D56) ->  | M56: Date | N56: Objet | O56: Montant | P56: Balance
E57: =IF(D57="","",E56+D57) -> 
B64: Dépensé | C64: =SUM(D55:D63) -> 0 | D64: Restant | E64: =C53+C64 -> 0
B66: Livret Jeune | C66: =Mai!E77 -> 0
B67: Date | C67: Objet | D67: Montant | E67: Balance
E68: =C66+D68 -> 0
E69: =IF(D69="","",E68+D69) -> 
K71: =IF(J71="","",K70+J71) -> 
B77: Dépensé | C77: =SUM(D68:D76) -> 0 | D77: Restant | E77: =C66+C77 -> 0
B79: LDD Solidaire | C79: =Mai!E90 -> 0
B80: Date | C80: Objet | D80: Montant | E80: Balance
E81: =C79+D81 -> 0
E82: =IF(D82="","",E81+D82) -> 
B90: Dépensé | C90: =SUM(D81:D89) -> 0 | D90: Restant | E90: =C79+C90 -> 0
B92: Millevie essentiel | C92: =Mai!E103 -> 53.06
B93: Date | C93: Objet | D93: Montant | E93: Balance
E94: =C92+D94 -> 53.06
E95: =IF(D95="","",E94+D95) -> 
B103: Dépensé | C103: =SUM(D94:D102) -> 0 | D103: Restant | E103: =C92+C103 -> 53.06
M106: Dépensé | N106: =SUM(O57:O105) -> 0 | O106: Restant | P106: =N55+N106 -> 1800
M108: Vêtements | N108: =C44+D44 -> 600
M109: Date | N109: Objet | O109: Montant | P109: Balance
M129: Dépensé | N129: =SUM(O110:O128) -> 0 | O129: Restant | P129: =N108+N129 -> 600
M131: Hygiène | N131: =C43+D43 -> 300
M132: Date | N132: Objet | O132: Montant | P132: Balance
K135: =IF(J135="","",K134+J135) -> 
H153: Gagné | I153: =SUMIF(J4:J152,">0") -> 2 | J153: Restant | K153: =I153+I154 -> 2 | M153: Dépensé | N153: =SUM(O133:O152) -> 0 | O153: Restant | P153: =N131+N153 -> 300
H154: Dépensé | I154: =SUMIF(J4:J152,"<0") -> 0

Sheet Juillet
B2: Revenus mensuels | G2: Opérations | M2: Reste & loisirs | N2: =C46+D46 -> -3140
B3: Nom | C3: Date | D3: Montant | E3: Reçu | G3: Date | H3: Objet | I3: Catégorie | J3: Montant | K3: Balance | M3: Date | N3: Objet | O3: Montant | P3: Balance
B4: Salaire Juillet | D4: 2 | E4: =IF(ISTEXT(C4),TRUE,FALSE) -> FALSE | G4: =B4 -> Salaire Juillet | J4: =D4 -> 2 | K4: =J4 -> 2
E5: =IF(ISTEXT(C5),TRUE,FALSE) -> FALSE | G5: =B5 -> 0 | J5: =D5 -> 0 | K5: =K4+J5 -> 2
E6: =IF(ISTEXT(C6),TRUE,FALSE) -> FALSE | K6: =IF(J6="","",K5+J6) -> 
K7: =IF(J7="","",K6+J7) -> 
B14: Total | C14: =SUM(D4:D13) -> 2
B16: Frais mensuels
B17: Nom | C17: Date | D17: Montant | E17: Reçu
E18: =IF(ISTEXT(C18),TRUE,FALSE) -> FALSE
E19: FALSE
E20: FALSE
E21: FALSE
E22: FALSE
E23: FALSE
E24: FALSE
E25: FALSE
E26: FALSE
E27: FALSE
B38: Total | C38: =SUM(D18:D37) -> 0
B40: Budget mensuel
B41: Nom | C41: Montant | D41: Reste mois précédent
B42: Total | C42: =C14-C38 -> 2 | D42: =D4 -> 2
B43: Hygiène | C43: 50 | D43: =Juin!P153 -> 300
B44: Vêtements | C44: 100 | D44: =Juin!P129 -> 600
B45: Nourriture | C45: 300 | D45: =Juin!P106 -> 1800
B46: Reste/loisirs | C46: =SUM(C42-(C43+C44+C45)) -> -448 | D46: =Juin!P53 -> -2692
B48: Calendrier
B49: Début mois | C49: 2024-06-01
B50: Fin mois | C50: =EOMONTH(C49,0) -> 2024-06-30 | D50: Budget quot.
B51: Nmbr de jours | C51: =DAY(EOMONTH(C49,0)) -> 30 | D51: =C46/C51 -> -14.93333333
B53: Livret A | C53: =Juin!E64 -> 0 | M53: Dépensé | N53: =SUM(O4:O52) -> 0 | O53: Restant | P53: =N2+N53 -> -3140
B54: Date | C54: Objet | D54: Montant | E54: Balance
E55: =C53+D55 -> 0 | M55: Nourriture | N55: =C45+D45 -> 2100
E56: =IF(D56="","",E55+D56) ->  | M56: Date | N56: Objet | O56: Montant | P56: Balance
E57: =IF(D57="","",E56+D57) -> 
B64: Dépensé | C64: =SUM(D55:D63) -> 0 | D64: Restant | E64: =C53+C64 -> 0
B66: Livret Jeune | C66: =Juin!E77 -> 0
B67: Date | C67: Objet | D67: Montant | E67: Balance
E68: =C66+D68 -> 0
E69: =IF(D69="","",E68+D69) -> 
K71: =IF(J71="","",K70+J71) -> 
B77: Dépensé | C77: =SUM(D68:D76) -> 0 | D77: Restant | E77: =C66+C77 -> 0
B79: LDD Solidaire | C79: =Juin!E90 -> 0
B80: Date | C80: Objet | D80: Montant | E80: Balance
E81: =C79+D81 -> 0
E82: =IF(D82="","",E81+D82) -> 
B90: Dépensé | C90: =SUM(D81:D89) -> 0 | D90: Restant | E90: =C79+C90 -> 0
B92: Millevie essentiel | C92: =Juin!E103 -> 53.06
B93: Date | C93: Objet | D93: Montant | E93: Balance
E94: =C92+D94 -> 53.06
E95: =IF(D95="","",E94+D95) -> 
B103: Dépensé | C103: =SUM(D94:D102) -> 0 | D103: Restant | E103: =C92+C103 -> 53.06
M106: Dépensé | N106: =SUM(O57:O105) -> 0 | O106: Restant | P106: =N55+N106 -> 2100
M108: Vêtements | N108: =C44+D44 -> 700
M109: Date | N109: Objet | O109: Montant | P109: Balance
M129: Dépensé | N129: =SUM(O110:O128) -> 0 | O129: Restant | P129: =N108+N129 -> 700
M131: Hygiène | N131: =C43+D43 -> 350
M132: Date | N132: Objet | O132: Montant | P132: Balance
K135: =IF(J135="","",K134+J135) -> 
H153: Gagné | I153: =SUMIF(J4:J152,">0") -> 2 | J153: Restant | K153: =I153+I154 -> 2 | M153: Dépensé | N153: =SUM(O133:O152) -> 0 | O153: Restant | P153: =N131+N153 -> 350
H154: Dépensé | I154: =SUMIF(J4:J152,"<0") -> 0

Sheet Août
B2: Revenus mensuels | G2: Opérations | M2: Reste & loisirs | N2: =C46+D46 -> -3588
B3: Nom | C3: Date | D3: Montant | E3: Reçu | G3: Date | H3: Objet | I3: Catégorie | J3: Montant | K3: Balance | M3: Date | N3: Objet | O3: Montant | P3: Balance
B4: Salaire Août | D4: 2 | E4: =IF(ISTEXT(C4),TRUE,FALSE) -> FALSE | G4: =B4 -> Salaire Août | J4: =D4 -> 2 | K4: =J4 -> 2
E5: =IF(ISTEXT(C5),TRUE,FALSE) -> FALSE | G5: =B5 -> 0 | J5: =D5 -> 0 | K5: =K4+J5 -> 2
E6: =IF(ISTEXT(C6),TRUE,FALSE) -> FALSE | K6: =IF(J6="","",K5+J6) -> 
K7: =IF(J7="","",K6+J7) -> 
B14: Total | C14: =SUM(D4:D13) -> 2
B16: Frais mensuels
B17: Nom | C17: Date | D17: Montant | E17: Reçu
E18: =IF(ISTEXT(C18),TRUE,FALSE) -> FALSE
E19: FALSE
E20: FALSE
E21: FALSE
E22: FALSE
E23: FALSE
E24: FALSE
E25: FALSE
E26: FALSE
E27: FALSE
B38: Total | C38: =SUM(D18:D37) -> 0
B40: Budget mensuel
B41: Nom | C41: Montant | D41: Reste mois précédent
B42: Total | C42: =C14-C38 -> 2 | D42: =D4 -> 2
B43: Hygiène | C43: 50 | D43: =Juillet!P153 -> 350
B44: Vêtements | C44: 100 | D44: =Juillet!P129 -> 700
B45: Nourriture | C45: 300 | D45: =Juillet!P106 -> 2100
B46: Reste/loisirs | C46: =SUM(C42-(C43+C44+C45)) -> -448 | D46: =Juillet!P53 -> -3140
B48: Calendrier
B49: Début mois | C49: 2024-08-01
B50: Fin mois | C50: =EOMONTH(C49,0) -> 2024-08-31 | D50: Budget quot.
B51: Nmbr de jours | C51: =DAY(EOMONTH(C49,0)) -> 31 | D51: =C46/C51 -> -14.4516129
B53: Livret A | C53: =Juillet!E64 -> 0 | M53: Dépensé | N53: =SUM(O4:O52) -> 0 | O53: Restant | P53: =N2+N53 -> -3588
B54: Date | C54: Objet | D54: Montant | E54: Balance
E55: =C53+D55 -> 0 | M55: Nourriture | N55: =C45+D45 -> 2400
E56: =IF(D56="","",E55+D56) ->  | M56: Date | N56: Objet | O56: Montant | P56: Balance
E57: =IF(D57="","",E56+D57) -> 
B64: Dépensé | C64: =SUM(D55:D63) -> 0 | D64: Restant | E64: =C53+C64 -> 0
B66: Livret Jeune | C66: =Juillet!E77 -> 0
B67: Date | C67: Objet | D67: Montant | E67: Balance
E68: =C66+D68 -> 0
E69: =IF(D69="","",E68+D69) -> 
K71: =IF(J71="","",K70+J71) -> 
B77: Dépensé | C77: =SUM(D68:D76) -> 0 | D77: Restant | E77: =C66+C77 -> 0
B79: LDD Solidaire | C79: =Juillet!E90 -> 0
B80: Date | C80: Objet | D80: Montant | E80: Balance
E81: =C79+D81 -> 0
E82: =IF(D82="","",E81+D82) -> 
B90: Dépensé | C90: =SUM(D81:D89) -> 0 | D90: Restant | E90: =C79+C90 -> 0
B92: Millevie essentiel | C92: =Juillet!E103 -> 53.06
B93: Date | C93: Objet | D93: Montant | E93: Balance
E94: =C92+D94 -> 53.06
E95: =IF(D95="","",E94+D95) -> 
B103: Dépensé | C103: =SUM(D94:D102) -> 0 | D103: Restant | E103: =C92+C103 -> 53.06
M106: Dépensé | N106: =SUM(O57:O105) -> 0 | O106: Restant | P106: =N55+N106 -> 2400
M108: Vêtements | N108: =C44+D44 -> 800
M109: Date | N109: Objet | O109: Montant | P109: Balance
M129: Dépensé | N129: =SUM(O110:O128) -> 0 | O129: Restant | P129: =N108+N129 -> 800
M131: Hygiène | N131: =C43+D43 -> 400
M132: Date | N132: Objet | O132: Montant | P132: Balance
K135: =IF(J135="","",K134+J135) -> 
H153: Gagné | I153: =SUMIF(J4:J152,">0") -> 2 | J153: Restant | K153: =I153+I154 -> 2 | M153: Dépensé | N153: =SUM(O133:O152) -> 0 | O153: Restant | P153: =N131+N153 -> 400
H154: Dépensé | I154: =SUMIF(J4:J152,"<0") -> 0

Sheet Septembre
B2: Revenus mensuels | G2: Opérations | M2: Reste & loisirs | N2: =C46+D46 -> -4036
B3: Nom | C3: Date | D3: Montant | E3: Reçu | G3: Date | H3: Objet | I3: Catégorie | J3: Montant | K3: Balance | M3: Date | N3: Objet | O3: Montant | P3: Balance
B4: Salaire Septembre | D4: 2 | E4: =IF(ISTEXT(C4),TRUE,FALSE) -> FALSE | G4: =B4 -> Salaire Septembre | J4: =D4 -> 2 | K4: =J4 -> 2
E5: =IF(ISTEXT(C5),TRUE,FALSE) -> FALSE | G5: =B5 -> 0 | J5: =D5 -> 0 | K5: =K4+J5 -> 2
E6: =IF(ISTEXT(C6),TRUE,FALSE) -> FALSE | K6: =IF(J6="","",K5+J6) -> 
K7: =IF(J7="","",K6+J7) -> 
B14: Total | C14: =SUM(D4:D13) -> 2
B16: Frais mensuels
B17: Nom | C17: Date | D17: Montant | E17: Reçu
E18: =IF(ISTEXT(C18),TRUE,FALSE) -> FALSE
E19: FALSE
E20: FALSE
E21: FALSE
E22: FALSE
E23: FALSE
E24: FALSE
E25: FALSE
E26: FALSE
E27: FALSE
B38: Total | C38: =SUM(D18:D37) -> 0
B40: Budget mensuel
B41: Nom | C41: Montant | D41: Reste mois précédent
B42: Total | C42: =C14-C38 -> 2 | D42: =D4 -> 2
B43: Hygiène | C43: 50 | D43: =Août!P153 -> 400
B44: Vêtements | C44: 100 | D44: =Août!P129 -> 800
B45: Nourriture | C45: 300 | D45: =Août!P106 -> 2400
B46: Reste/loisirs | C46: =SUM(C42-(C43+C44+C45)) -> -448 | D46: =Août!P53 -> -3588
B48: Calendrier
B49: Début mois | C49: 2024-09-01
B50: Fin mois | C50: =EOMONTH(C49,0) -> 2024-09-30 | D50: Budget quot.
B51: Nmbr de jours | C51: =DAY(EOMONTH(C49,0)) -> 30 | D51: =C46/C51 -> -14.93333333
B53: Livret A | C53: =Août!E64 -> 0 | M53: Dépensé | N53: =SUM(O4:O52) -> 0 | O53: Restant | P53: =N2+N53 -> -4036
B54: Date | C54: Objet | D54: Montant | E54: Balance
E55: =C53+D55 -> 0 | M55: Nourriture | N55: =C45+D45 -> 2700
E56: =IF(D56="","",E55+D56) ->  | M56: Date | N56: Objet | O56: Montant | P56: Balance
E57: =IF(D57="","",E56+D57) -> 
B64: Dépensé | C64: =SUM(D55:D63) -> 0 | D64: Restant | E64: =C53+C64 -> 0
B66: Livret Jeune | C66: =Août!E77 -> 0
B67: Date | C67: Objet | D67: Montant | E67: Balance
E68: =C66+D68 -> 0
E69: =IF(D69="","",E68+D69) -> 
K71: =IF(J71="","",K70+J71) -> 
B77: Dépensé | C77: =SUM(D68:D76) -> 0 | D77: Restant | E77: =C66+C77 -> 0
B79: LDD Solidaire | C79: =Août!E90 -> 0
B80: Date | C80: Objet | D80: Montant | E80: Balance
E81: =C79+D81 -> 0
E82: =IF(D82="","",E81+D82) -> 
B90: Dépensé | C90: =SUM(D81:D89) -> 0 | D90: Restant | E90: =C79+C90 -> 0
B92: Millevie essentiel | C92: =Août!E103 -> 53.06
B93: Date | C93: Objet | D93: Montant | E93: Balance
E94: =C92+D94 -> 53.06
E95: =IF(D95="","",E94+D95) -> 
B103: Dépensé | C103: =SUM(D94:D102) -> 0 | D103: Restant | E103: =C92+C103 -> 53.06
M106: Dépensé | N106: =SUM(O57:O105) -> 0 | O106: Restant | P106: =N55+N106 -> 2700
M108: Vêtements | N108: =C44+D44 -> 900
M109: Date | N109: Objet | O109: Montant | P109: Balance
M129: Dépensé | N129: =SUM(O110:O128) -> 0 | O129: Restant | P129: =N108+N129 -> 900
M131: Hygiène | N131: =C43+D43 -> 450
M132: Date | N132: Objet | O132: Montant | P132: Balance
K135: =IF(J135="","",K134+J135) -> 
H153: Gagné | I153: =SUMIF(J4:J152,">0") -> 2 | J153: Restant | K153: =I153+I154 -> 2 | M153: Dépensé | N153: =SUM(O133:O152) -> 0 | O153: Restant | P153: =N131+N153 -> 450
H154: Dépensé | I154: =SUMIF(J4:J152,"<0") -> 0

Sheet Octobre
B2: Revenus mensuels | G2: Opérations | M2: Reste & loisirs | N2: =C46+D46 -> -4484
B3: Nom | C3: Date | D3: Montant | E3: Reçu | G3: Date | H3: Objet | I3: Catégorie | J3: Montant | K3: Balance | M3: Date | N3: Objet | O3: Montant | P3: Balance
B4: Salaire Octobre | D4: 2 | E4: =IF(ISTEXT(C4),TRUE,FALSE) -> FALSE | G4: =B4 -> Salaire Octobre | J4: =D4 -> 2 | K4: =J4 -> 2
E5: =IF(ISTEXT(C5),TRUE,FALSE) -> FALSE | G5: =B5 -> 0 | J5: =D5 -> 0 | K5: =K4+J5 -> 2
E6: =IF(ISTEXT(C6),TRUE,FALSE) -> FALSE | K6: =IF(J6="","",K5+J6) -> 
K7: =IF(J7="","",K6+J7) -> 
B14: Total | C14: =SUM(D4:D13) -> 2
B16: Frais mensuels
B17: Nom | C17: Date | D17: Montant | E17: Reçu
E18: =IF(ISTEXT(C18),TRUE,FALSE) -> FALSE
E19: FALSE
E20: FALSE
E21: FALSE
E22: FALSE
E23: FALSE
E24: FALSE
E25: FALSE
E26: FALSE
E27: FALSE
E28: FALSE
E29: FALSE
B38: Total | C38: =SUM(D18:D37) -> 0
B40: Budget mensuel
B41: Nom | C41: Montant | D41: Reste mois précédent
B42: Total | C42: =C14-C38 -> 2 | D42: =D4 -> 2
B43: Hygiène | C43: 50 | D43: =Septembre!P153 -> 450
B44: Vêtements | C44: 100 | D44: =Septembre!P129 -> 900
B45: Nourriture | C45: 300 | D45: =Septembre!P106 -> 2700
B46: Reste/loisirs | C46: =SUM(C42-(C43+C44+C45)) -> -448 | D46: =Septembre!P53 -> -4036
B48: Calendrier
B49: Début mois | C49: 2024-10-01
B50: Fin mois | C50: =EOMONTH(C49,0) -> 2024-10-31 | D50: Budget quot.
B51: Nmbr de jours | C51: =DAY(EOMONTH(C49,0)) -> 31 | D51: =C46/C51 -> -14.4516129
B53: Livret A | C53: =Septembre!E64 -> 0 | M53: Dépensé | N53: =SUM(O4:O52) -> 0 | O53: Restant | P53: =N2+N53 -> -4484
B54: Date | C54: Objet | D54: Montant | E54: Balance
E55: =C53+D55 -> 0 | M55: Nourriture | N55: =C45+D45 -> 3000
E56: =IF(D56="","",E55+D56) ->  | M56: Date | N56: Objet | O56: Montant | P56: Balance
E57: =IF(D57="","",E56+D57) -> 
B64: Dépensé | C64: =SUM(D55:D63) -> 0 | D64: Restant | E64: =C53+C64 -> 0
B66: Livret Jeune | C66: =Septembre!E77 -> 0
B67: Date | C67: Objet | D67: Montant | E67: Balance
E68: =C66+D68 -> 0
E69: =IF(D69="","",E68+D69) -> 
K71: =IF(J71="","",K70+J71) -> 
B77: Dépensé | C77: =SUM(D68:D76) -> 0 | D77: Restant | E77: =C66+C77 -> 0
B79: LDD Solidaire | C79: =Septembre!E90 -> 0
B80: Date | C80: Objet | D80: Montant | E80: Balance
E81: =C79+D81 -> 0
E82: =IF(D82="","",E81+D82) -> 
B90: Dépensé | C90: =SUM(D81:D89) -> 0 | D90: Restant | E90: =C79+C90 -> 0
B92: Millevie essentiel | C92: =Septembre!E103 -> 53.06
B93: Date | C93: Objet | D93: Montant | E93: Balance
E94: =C92+D94 -> 53.06
E95: =IF(D95="","",E94+D95) -> 
B103: Dépensé | C103: =SUM(D94:D102) -> 0 | D103: Restant | E103: =C92+C103 -> 53.06
M106: Dépensé | N106: =SUM(O57:O105) -> 0 | O106: Restant | P106: =N55+N106 -> 3000
M108: Vêtements | N108: =C44+D44 -> 1000
M109: Date | N109: Objet | O109: Montant | P109: Balance
M129: Dépensé | N129: =SUM(O110:O128) -> 0 | O129: Restant | P129: =N108+N129 -> 1000
M131: Hygiène | N131: =C43+D43 -> 500
M132: Date | N132: Objet | O132: Montant | P132: Balance
K135: =IF(J135="","",K134+J135) -> 
H153: Gagné | I153: =SUMIF(J4:J152,">0") -> 2 | J153: Restant | K153: =I153+I154 -> 2 | M153: Dépensé | N153: =SUM(O133:O152) -> 0 | O153: Restant | P153: =N131+N153 -> 500
H154: Dépensé | I154: =SUMIF(J4:J152,"<0") -> 0

Sheet Novembre
B2: Revenus mensuels | G2: Opérations | M2: Reste & loisirs | N2: =C46+D46 -> -4932
B3: Nom | C3: Date | D3: Montant | E3: Reçu | G3: Date | H3: Objet | I3: Catégorie | J3: Montant | K3: Balance | M3: Date | N3: Objet | O3: Montant | P3: Balance
B4: Salaire Novembre | D4: 2 | E4: =IF(ISTEXT(C4),TRUE,FALSE) -> FALSE | G4: =B4 -> Salaire Novembre | J4: =D4 -> 2 | K4: =J4 -> 2
E5: =IF(ISTEXT(C5),TRUE,FALSE) -> FALSE | G5: =B5 -> 0 | J5: =D5 -> 0 | K5: =K4+J5 -> 2
E6: =IF(ISTEXT(C6),TRUE,FALSE) -> FALSE | K6: =IF(J6="","",K5+J6) -> 
K7: =IF(J7="","",K6+J7) -> 
B14: Total | C14: =SUM(D4:D13) -> 2
B16: Frais mensuels
B17: Nom | C17: Date | D17: Montant | E17: Reçu
E18: =IF(ISTEXT(C18),TRUE,FALSE) -> FALSE
E19: FALSE
E20: FALSE
E21: FALSE
E22: FALSE
E23: FALSE
E24: FALSE
E25: FALSE
E26: FALSE
E27: FALSE
E28: FALSE
E29: FALSE
B38: Total | C38: =SUM(D18:D37) -> 0
B40: Budget mensuel
B41: Nom | C41: Montant | D41: Reste mois précédent
B42: Total | C42: =C14-C38 -> 2 | D42: =D4 -> 2
B43: Hygiène | C43: 50 | D43: =Octobre!P153 -> 500
B44: Vêtements | C44: 100 | D44: =Octobre!P129 -> 1000
B45: Nourriture | C45: 300 | D45: =Octobre!P106 -> 3000
B46: Reste/loisirs | C46: =SUM(C42-(C43+C44+C45)) -> -448 | D46: =Octobre!P53 -> -4484
B48: Calendrier
B49: Début mois | C49: 2024-11-01
B50: Fin mois | C50: =EOMONTH(C49,0) -> 2024-11-30 | D50: Budget quot.
B51: Nmbr de jours | C51: =DAY(EOMONTH(C49,0)) -> 30 | D51: =C46/C51 -> -14.93333333
B53: Livret A | C53: =Octobre!E64 -> 0 | M53: Dépensé | N53: =SUM(O4:O52) -> 0 | O53: Restant | P53: =N2+N53 -> -4932
B54: Date | C54: Objet | D54: Montant | E54: Balance
E55: =C53+D55 -> 0 | M55: Nourriture | N55: =C45+D45 -> 3300
E56: =IF(D56="","",E55+D56) ->  | M56: Date | N56: Objet | O56: Montant | P56: Balance
E57: =IF(D57="","",E56+D57) -> 
B64: Dépensé | C64: =SUM(D55:D63) -> 0 | D64: Restant | E64: =C53+C64 -> 0
B66: Livret Jeune | C66: =Octobre!E77 -> 0
B67: Date | C67: Objet | D67: Montant | E67: Balance
E68: =C66+D68 -> 0
E69: =IF(D69="","",E68+D69) -> 
K71: =IF(J71="","",K70+J71) -> 
B77: Dépensé | C77: =SUM(D68:D76) -> 0 | D77: Restant | E77: =C66+C77 -> 0
B79: LDD Solidaire | C79: =Octobre!E90 -> 0
B80: Date | C80: Objet | D80: Montant | E80: Balance
E81: =C79+D81 -> 0
E82: =IF(D82="","",E81+D82) -> 
B90: Dépensé | C90: =SUM(D81:D89) -> 0 | D90: Restant | E90: =C79+C90 -> 0
B92: Millevie essentiel | C92: =Octobre!E103 -> 53.06
B93: Date | C93: Objet | D93: Montant | E93: Balance
E94: =C92+D94 -> 53.06
E95: =IF(D95="","",E94+D95) -> 
B103: Dépensé | C103: =SUM(D94:D102) -> 0 | D103: Restant | E103: =C92+C103 -> 53.06
M106: Dépensé | N106: =SUM(O57:O105) -> 0 | O106: Restant | P106: =N55+N106 -> 3300
M108: Vêtements | N108: =C44+D44 -> 1100
M109: Date | N109: Objet | O109: Montant | P109: Balance
M129: Dépensé | N129: =SUM(O110:O128) -> 0 | O129: Restant | P129: =N108+N129 -> 1100
M131: Hygiène | N131: =C43+D43 -> 550
M132: Date | N132: Objet | O132: Montant | P132: Balance
K135: =IF(J135="","",K134+J135) -> 
H153: Gagné | I153: =SUMIF(J4:J152,">0") -> 2 | J153: Restant | K153: =I153+I154 -> 2 | M153: Dépensé | N153: =SUM(O133:O152) -> 0 | O153: Restant | P153: =N131+N153 -> 550
H154: Dépensé | I154: =SUMIF(J4:J152,"<0") -> 0

Sheet Décembre
B2: Revenus mensuels | G2: Opérations | M2: Reste & loisirs | N2: =C46+D46 -> -5380
B3: Nom | C3: Date | D3: Montant | E3: Reçu | G3: Date | H3: Objet | I3: Catégorie | J3: Montant | K3: Balance | M3: Date | N3: Objet | O3: Montant | P3: Balance
B4: Salaire Décembre | D4: 2 | G4: =B4 -> Salaire Décembre | J4: =D4 -> 2 | K4: =J4 -> 2
G5: =B5 -> 0 | J5: =D5 -> 0 | K5: =K4+J5 -> 2
K6: =IF(J6="","",K5+J6) -> 
K7: =IF(J7="","",K6+J7) -> 
B14: Total | C14: =SUM(D4:D13) -> 2
B16: Frais mensuels
B17: Nom | C17: Date | D17: Montant | E17: Reçu
B38: Total | C38: =SUM(D18:D37) -> 0
B40: Budget mensuel
B41: Nom | C41: Montant | D41: Reste mois précédent
B42: Total | C42: =C14-C38 -> 2 | D42: =D4 -> 2
B43: Hygiène | C43: 50 | D43: =Novembre!P153 -> 550
B44: Vêtements | C44: 100 | D44: =Novembre!P129 -> 1100
B45: Nourriture | C45: 300 | D45: =Novembre!P106 -> 3300
B46: Reste/loisirs | C46: =SUM(C42-(C43+C44+C45)) -> -448 | D46: =Novembre!P53 -> -4932
B48: Calendrier
B49: Début mois | C49: 2024-12-01
B50: Fin mois | C50: =EOMONTH(C49,0) -> 2024-12-31 | D50: Budget quot.
B51: Nmbr de jours | C51: =DAY(EOMONTH(C49,0)) -> 31 | D51: =C46/C51 -> -14.4516129
B53: Livret A | C53: =Novembre!E64 -> 0 | M53: Dépensé | N53: =SUM(O4:O52) -> 0 | O53: Restant | P53: =N2+N53 -> -5380
B54: Date | C54: Objet | D54: Montant | E54: Balance
E55: =C53+D55 -> 0 | M55: Nourriture | N55: =C45+D45 -> 3600
E56: =IF(D56="","",E55+D56) ->  | M56: Date | N56: Objet | O56: Montant | P56: Balance
E57: =IF(D57="","",E56+D57) -> 
B64: Dépensé | C64: =SUM(D55:D63) -> 0 | D64: Restant | E64: =C53+C64 -> 0
B66: Livret Jeune | C66: =Novembre!E77 -> 0
B67: Date | C67: Objet | D67: Montant | E67: Balance
E68: =C66+D68 -> 0
E69: =IF(D69="","",E68+D69) -> 
K71: =IF(J71="","",K70+J71) -> 
B77: Dépensé | C77: =SUM(D68:D76) -> 0 | D77: Restant | E77: =C66+C77 -> 0
B79: LDD Solidaire | C79: =Novembre!E90 -> 0
B80: Date | C80: Objet | D80: Montant | E80: Balance
E81: =C79+D81 -> 0
E82: =IF(D82="","",E81+D82) -> 
B90: Dépensé | C90: =SUM(D81:D89) -> 0 | D90: Restant | E90: =C79+C90 -> 0
B92: Millevie essentiel | C92: =Novembre!E103 -> 53.06
B93: Date | C93: Objet | D93: Montant | E93: Balance
E94: =C92+D94 -> 53.06
E95: =IF(D95="","",E94+D95) -> 
B103: Dépensé | C103: =SUM(D94:D102) -> 0 | D103: Restant | E103: =C92+C103 -> 53.06
M106: Dépensé | N106: =SUM(O57:O105) -> 0 | O106: Restant | P106: =N55+N106 -> 3600
M108: Vêtements | N108: =C44+D44 -> 1200
M109: Date | N109: Objet | O109: Montant | P109: Balance
M129: Dépensé | N129: =SUM(O110:O128) -> 0 | O129: Restant | P129: =N108+N129 -> 1200
M131: Hygiène | N131: =C43+D43 -> 600
M132: Date | N132: Objet | O132: Montant | P132: Balance
K135: =IF(J135="","",K134+J135) -> 
H153: Gagné | I153: =SUMIF(J4:J152,">0") -> 2 | J153: Restant | K153: =I153+I154 -> 2 | M153: Dépensé | N153: =SUM(O133:O152) -> 0 | O153: Restant | P153: =N131+N153 -> 600
H154: Dépensé | I154: =SUMIF(J4:J152,"<0") -> 0
